bitfinex/quotes_BTCUSD_20241001
["timestamp","ask_amount","ask_price","bid_price","bid_amount"]
[1727770126474,3.63497084,64165.0,64164.0,0.8475525]
[1727770127352,3.59507247,64165.0,64164.0,0.8475525]
[1727770127568,3.55850947,64165.0,64164.0,0.8475525]
[1727770127791,3.54384291,64165.0,64164.0,0.8475525]
[1727770128231,3.51940576,64165.0,64164.0,0.8475525]
[1727770128451,3.48007976,64165.0,64164.0,0.8475525]
[1727770131629,3.50451672,64165.0,64164.0,0.8475525]
[1727770133694,4.07447072,64165.0,64164.0,0.8475525]
[1727770134385,3.68069972,64165.0,64164.0,0.8475525]
[1727770134629,3.66669972,64165.0,64164.0,0.8475525]
[1727770134864,3.55836472,64165.0,64164.0,0.8475525]
[1727770135097,3.57236472,64165.0,64164.0,0.8475525]
[1727770135324,3.58636472,64165.0,64164.0,0.8475525]
[1727770136719,3.62590379,64165.0,64164.0,0.8475525]
[1727770138993,3.60146683,64165.0,64164.0,0.8475525]
[1727770140777,2.82567883,64165.0,64164.0,0.8475525]
[1727770141005,2.36119403,64165.0,64164.0,0.8475525]
[1727770141226,2.34719403,64165.0,64164.0,0.8475525]
[1727770141463,2.36119403,64165.0,64164.0,0.8475525]
[1727770141715,2.34719403,64165.0,64164.0,0.8475525]
[1727770141952,2.36119403,64165.0,64164.0,0.8475525]
[1727770142187,2.38563109,64165.0,64164.0,0.8475525]
[1727770143136,2.38563109,64165.0,64164.0,0.82098328]
[1727770143375,2.38563109,64165.0,64164.0,0.34099542]
[1727770143595,2.38563109,64165.0,64151.0,0.001648]
[1727770143596,0.283379,64152.0,64151.0,0.001648]
[1727770143813,1.09884581,64152.0,64151.0,0.001648]
[1727770144284,1.1232851,64152.0,64151.0,0.001648]
[1727770144511,1.24112318,64152.0,64151.0,0.001648]
[1727770145223,1.25412318,64152.0,64151.0,0.001648]
[1727770145739,1.41056996,64152.0,64151.0,0.001648]
[1727770145958,1.550559,64152.0,64151.0,0.001648]
[1727770146196,1.82049997,64152.0,64151.0,0.001648]
[1727770146428,1.68051093,64152.0,64151.0,0.001648]
[1727770146900,1.66651093,64152.0,64151.0,0.001648]
[1727770147138,1.56454994,64152.0,64151.0,0.001648]
[1727770147370,1.69477599,64152.0,64151.0,0.001648]
[1727770147840,1.68177599,64152.0,64151.0,0.001648]
[1727770148300,1.69577599,64152.0,64151.0,0.001648]
[1727770148789,1.6573367,64152.0,64151.0,0.001648]
[1727770149020,1.6713367,64152.0,64151.0,0.001648]
[1727770149533,2.6742027,64152.0,64151.0,0.001648]
[1727770149762,2.8689027,64152.0,64151.0,0.001648]
[1727770150480,2.8549027,64152.0,64151.0,0.001648]
[1727770150710,2.8689027,64152.0,64151.0,0.001648]
[1727770150951,2.8549027,64152.0,64151.0,0.001648]
[1727770151416,2.8689027,64152.0,64151.0,0.001648]
[1727770151650,0.183394,64146.0,64145.0,0.001648]
[1727770151876,5.49808889,64146.0,64145.0,0.001648]
[1727770152149,2.48195668,64146.0,64145.0,0.001648]
[1727770152680,2.3641186,64146.0,64145.0,0.001648]
[1727770152945,2.49856961,64146.0,64145.0,0.001648]
[1727770153181,2.49107839,64146.0,64145.0,0.001648]
[1727770153439,2.50507839,64146.0,64145.0,0.001648]
[1727770153673,2.50507839,64146.0,64131.0,0.000824]
[1727770153674,0.39926308,64133.0,64131.0,0.000824]
[1727770153908,1.19980868,64133.0,64131.0,0.000824]
[1727770154111,0.255928,64132.0,64131.0,0.000824]
[1727770154336,1.35985132,64132.0,64131.0,0.000824]
[1727770154576,1.0674736,64132.0,64131.0,0.000824]
[1727770154804,1.20740454,64132.0,64131.0,0.000824]
[1727770155481,1.0674736,64132.0,64131.0,0.000824]
[1727770155957,1.0784736,64132.0,64131.0,0.000824]
[1727770156662,1.21840454,64132.0,64131.0,0.000824]
[1727770157100,1.0924736,64132.0,64131.0,0.000824]
[1727770157776,1.23225489,64132.0,64131.0,0.000824]
[1727770160780,1.24657918,64132.0,64131.0,0.000824]
[1727770161244,1.27552403,64132.0,64131.0,0.000824]
[1727770161684,1.54626993,64132.0,64131.0,0.000824]
[1727770162398,1.38982315,64132.0,64131.0,0.000824]
[1727770162625,1.38989197,64132.0,64131.0,0.000824]
[1727770163733,0.16194,64127.0,64126.0,0.077924]
[1727770163946,1.08408429,64127.0,64126.0,0.077924]
[1727770164820,0.96740823,64127.0,64126.0,0.077924]
[1727770165533,1.09009607,64127.0,64126.0,0.077924]
[1727770165762,0.97340823,64127.0,64126.0,0.077924]
[1727770166457,0.98240823,64127.0,64126.0,0.077924]
[1727770166684,0.98240823,64127.0,64126.0,0.169924]
[1727770167356,1.13885501,64127.0,64126.0,0.169924]
[1727770168315,1.16330024,64127.0,64126.0,0.169924]
[1727770168533,1.13885501,64127.0,64126.0,0.169924]
[1727770170471,0.98240823,64127.0,64126.0,0.169924]
[1727770171877,1.00685328,64127.0,64126.0,0.169924]
[1727770172100,0.98240823,64127.0,64126.0,0.169924]
[1727770172335,0.98057947,64127.0,64126.0,0.169924]
[1727770174873,1.00502442,64127.0,64126.0,0.169924]
[1727770176692,1.14508718,64127.0,64126.0,0.169924]
[1727770178315,0.69512662,64127.0,64126.0,0.28776208]
[1727770178544,0.76467458,64127.0,64126.0,0.44370408]
[1727770178766,0.67155703,64127.0,64126.0,0.44370408]
[1727770179013,0.49092,64127.0,64126.0,0.44370408]
[1727770179226,0.49092,64127.0,64126.0,0.28776208]
[1727770179700,0.76485367,64127.0,64126.0,0.28776208]
[1727770181144,0.67145362,64127.0,64126.0,0.28776208]
[1727770181871,0.81265005,64127.0,64126.0,0.28776208]
[1727770182583,0.81265005,64127.0,64126.0,0.169924]
[1727770182807,0.81465005,64127.0,64126.0,0.169924]
[1727770183029,0.81465005,64127.0,64126.0,0.28776208]
[1727770183725,0.69789718,64127.0,64126.0,0.28776208]
[1727770183924,0.81474036,64127.0,64126.0,0.28776208]
[1727770184502,0.69789718,64127.0,64126.0,0.28776208]
[1727770185503,0.67345362,64127.0,64126.0,0.28776208]
[1727770186815,0.67313916,64127.0,64126.0,0.28776208]
[1727770187461,0.67313916,64127.0,64126.0,0.169924]
[1727770187686,0.81341469,64127.0,64126.0,0.28776208]
[1727770188365,0.83785829,64127.0,64126.0,0.28776208]
[1727770188574,0.69758276,64127.0,64126.0,0.28776208]
[1727770188796,0.67313916,64127.0,64126.0,0.28776208]
[1727770191508,0.67332892,64127.0,64126.0,0.28776208]
[1727770191734,0.69777263,64127.0,64126.0,0.28776208]
[1727770197569,0.85371263,64127.0,64126.0,0.28776208]
[1727770198407,0.69777263,64127.0,64126.0,0.169924]
[1727770198617,0.85371263,64127.0,64126.0,0.169924]
[1727770199038,0.82926892,64127.0,64126.0,0.169924]
[1727770200720,1.08184141,64127.0,64126.0,0.169924]
[1727770202198,1.10628514,64127.0,64126.0,0.169924]
[1727770202607,0.85386212,64127.0,64126.0,0.169924]
[1727770203224,1.10664387,64127.0,64126.0,0.169924]
[1727770203901,0.95070387,64127.0,64126.0,0.169924]
[1727770204088,0.69792212,64127.0,64126.0,0.169924]
[1727770205224,0.69592212,64127.0,64126.0,0.325866]
[1727770205452,0.83637941,64127.0,64126.0,0.169924]
[1727770205654,0.83637941,64127.0,64126.0,0.325866]
[1727770206077,0.69592212,64127.0,64126.0,0.325866]
[1727770206277,0.69592212,64127.0,64126.0,0.169924]
[1727770206930,0.69792212,64127.0,64126.0,0.169924]
[1727770208676,0.69592212,64127.0,64126.0,0.325866]
[1727770208882,0.81295159,64127.0,64126.0,0.325866]
[1727770209098,0.69592212,64127.0,64126.0,0.325866]
[1727770210170,0.69592212,64127.0,64126.0,0.44370408]
[1727770211864,0.69792212,64127.0,64126.0,0.44370408]
[1727770214273,0.67416089,64127.0,64126.0,0.44370408]
[1727770215214,0.67416089,64127.0,64126.0,0.000824]
[1727770215676,0.81456971,64127.0,64126.0,0.000824]
[1727770216361,0.81456971,64127.0,64126.0,0.11866208]
[1727770218014,0.81456971,64127.0,64126.0,0.000824]
[1727770218234,0.67416089,64127.0,64126.0,0.000824]
[1727770218665,0.67368086,64127.0,64126.0,0.000824]
[1727770218880,0.82962086,64127.0,64126.0,0.000824]
[1727770219105,0.82962771,64127.0,64126.0,0.000824]
[1727770219320,0.67368771,64127.0,64126.0,0.000824]
[1727770220928,0.9267625,64127.0,64126.0,0.000824]
[1727770221162,0.67368771,64127.0,64126.0,0.000824]
[1727770221659,0.67368771,64127.0,64126.0,0.27460408]
[1727770221894,0.814143,64127.0,64126.0,0.11866208]
[1727770222851,0.83858639,64127.0,64126.0,0.11866208]
[1727770223282,0.6981311,64127.0,64126.0,0.11866208]
[1727770223763,0.6981606,64127.0,64126.0,0.11866208]
[1727770226003,0.67371721,64127.0,64126.0,0.11866208]
[1727770226461,0.67375321,64127.0,64126.0,0.11866208]
[1727770228798,0.67375755,64127.0,64126.0,0.11866208]
[1727770232684,0.67375755,64127.0,64126.0,0.27460408]
[1727770233603,0.69821206,64127.0,64126.0,0.27460408]
[1727770235947,0.6737686,64127.0,64126.0,0.27460408]
[1727770236435,0.81425678,64127.0,64126.0,0.27460408]
[1727770238150,0.6737686,64127.0,64126.0,0.27460408]
[1727770238624,0.67377519,64127.0,64126.0,0.27460408]
[1727770239068,0.69821843,64127.0,64126.0,0.27460408]
[1727770242730,0.83866849,64127.0,64126.0,0.27460408]
[1727770243499,0.83868332,64127.0,64126.0,0.27460408]
[1727770243950,0.83868332,64127.0,64126.0,0.11866208]
[1727770245689,0.81424008,64127.0,64126.0,0.11866208]
[1727770246557,0.67379165,64127.0,64126.0,0.000824]
[1727770246772,0.82973165,64127.0,64126.0,0.000824]
[1727770247000,0.98773613,64127.0,64126.0,0.000824]
[1727770247441,1.08295196,64127.0,64126.0,0.000824]
[1727770248860,0.98771996,64127.0,64126.0,0.000824]
[1727770249084,1.26538477,64127.0,64126.0,0.000824]
[1727770249314,1.24093412,64127.0,64126.0,0.000824]
[1727770251311,1.08499412,64127.0,64126.0,0.000824]
[1727770251534,0.92701196,64127.0,64126.0,0.000824]
[1727770251756,0.67379165,64127.0,64126.0,0.000824]
[1727770253084,0.69769133,64127.0,64126.0,0.000824]
[1727770254256,0.67324739,64127.0,64126.0,0.000824]
[1727770261327,0.49292,64127.0,64126.0,0.000824]
[1727770261555,0.67332851,64127.0,64126.0,0.000824]
[1727770262203,0.82926851,64127.0,64126.0,0.000824]
[1727770262409,0.82932153,64127.0,64126.0,0.000824]
[1727770262636,1.08196767,64127.0,64126.0,0.000824]
[1727770266450,0.82932153,64127.0,64126.0,0.000824]
[1727770268053,1.07697933,64127.0,64126.0,0.000824]
[1727770268276,1.32962547,64127.0,64126.0,0.000824]
[1727770268716,1.48764715,64127.0,64126.0,0.000824]
[1727770269181,1.32962547,64127.0,64126.0,0.000824]
[1727770269400,1.48764283,64127.0,64126.0,0.000824]
[1727770269858,1.32962547,64127.0,64126.0,0.000824]
[1727770270301,1.34431313,64127.0,64126.0,0.000824]
[1727770270743,1.34325051,64127.0,64126.0,0.000824]
[1727770282246,1.36769569,64127.0,64126.0,0.000824]
[1727770285749,1.46769569,64127.0,64126.0,0.000824]
[1727770285960,1.52615051,64127.0,64126.0,0.000824]
[1727770288425,1.55059678,64127.0,64126.0,0.000824]
[1727770288871,1.66843486,64127.0,64126.0,0.000824]
[1727770289583,0.281442,64126.0,64125.0,0.00161501]
[1727770289781,1.42956485,64126.0,64125.0,0.00161501]
[1727770290469,0.0065,64121.0,64120.0,0.001648]
[1727770290689,0.97035157,64121.0,64120.0,0.001648]
[1727770290914,1.22237785,64121.0,64120.0,0.001648]
[1727770291345,1.31387785,64121.0,64120.0,0.001648]
[1727770292968,1.31787785,64121.0,64120.0,0.001648]
[1727770293201,1.53846384,64121.0,64120.0,0.001648]
[1727770293426,1.54546384,64121.0,64120.0,0.001648]
[1727770293669,1.42762576,64121.0,64120.0,0.001648]
[1727770293920,1.42362576,64121.0,64120.0,0.001648]
[1727770294360,1.41662576,64121.0,64120.0,0.001648]
[1727770294584,1.43062576,64121.0,64120.0,0.001648]
[1727770294862,1.41662576,64121.0,64120.0,0.001648]
[1727770295086,1.43062576,64121.0,64120.0,0.001648]
[1727770295317,1.74486563,64121.0,64120.0,0.001648]
[1727770295764,1.75386563,64121.0,64120.0,0.001648]
[1727770296244,1.72041772,64121.0,64120.0,0.001648]
[1727770296683,1.73241772,64121.0,64120.0,0.001648]
[1727770297592,1.9552558,64121.0,64120.0,0.001648]
[1727770297831,1.79746271,64121.0,64120.0,0.001648]
[1727770298740,1.7938145,64121.0,64120.0,0.001648]
[1727770299224,1.81826281,64121.0,64120.0,0.001648]
[1727770299695,0.56340208,64117.0,64114.0,0.000825]
[1727770299911,1.36574202,64117.0,64114.0,0.000825]
[1727770300180,1.61558902,64117.0,64114.0,0.000825]
[1727770301277,1.62858902,64117.0,64114.0,0.000825]
[1727770301737,1.63758902,64117.0,64114.0,0.000825]
[1727770302422,1.7940358,64117.0,64114.0,0.000825]
[1727770302909,1.51975094,64117.0,64114.0,0.000825]
[1727770303851,1.53435915,64117.0,64116.0,0.00053442]
[1727770304311,1.69121361,64117.0,64116.0,0.00053442]
[1727770309298,1.71566366,64117.0,64116.0,0.00053442]
[1727770309743,1.71566366,64117.0,64114.0,0.00080726]
[1727770309744,0.161969,64115.0,64114.0,0.00080726]
[1727770309965,0.96399372,64115.0,64114.0,0.00080726]
[1727770310175,1.21339941,64115.0,64114.0,0.00080726]
[1727770311292,1.22039941,64115.0,64114.0,0.00080726]
[1727770311510,1.23139941,64115.0,64114.0,0.00080726]
[1727770313373,1.25585016,64115.0,64114.0,0.00080726]
[1727770316115,1.23139941,64115.0,64114.0,0.00080726]
[1727770316564,1.25585014,64115.0,64114.0,0.00080726]
[1727770318862,1.25575044,64115.0,64114.0,0.00080726]
[1727770319788,0.157974,64113.0,64112.0,0.00162131]
[1727770319999,0.95995718,64113.0,64112.0,0.00162131]
[1727770320216,1.21330471,64113.0,64112.0,0.00162131]
[1727770321109,1.21830471,64113.0,64112.0,0.00162131]
[1727770321329,1.22630471,64113.0,64112.0,0.00162131]
[1727770326027,1.28957937,64113.0,64112.0,0.00162131]
[1727770326717,1.22630471,64113.0,64112.0,0.00162131]
[1727770327188,1.22642405,64113.0,64112.0,0.00162131]
[1727770328608,1.38412493,64113.0,64112.0,0.00162131]
[1727770329744,1.22642405,64113.0,64112.0,0.00162131]
[1727770333592,1.25087485,64113.0,64112.0,0.00162131]
[1727770338807,1.28243536,64113.0,64112.0,0.00162131]
[1727770339549,1.28408336,64113.0,64112.0,0.00162131]
[1727770340222,1.49198336,64113.0,64112.0,0.00162131]
[1727770340447,0.266977,64112.0,64111.0,0.09994657]
[1727770340687,1.31842705,64112.0,64111.0,0.09994657]
[1727770342142,1.33042705,64112.0,64111.0,0.09994657]
[1727770342584,1.34442705,64112.0,64111.0,0.09994657]
[1727770343712,1.52032547,64112.0,64111.0,0.09994657]
[1727770344616,1.52482547,64112.0,64111.0,0.09994657]
[1727770346476,1.52856677,64112.0,64111.0,0.09994657]
[1727770346938,1.50411513,64112.0,64111.0,0.09994657]
[1727770347628,1.35266835,64112.0,64111.0,0.09994657]
[1727770347862,1.58315922,64112.0,64111.0,0.09994657]
[1727770348085,0.162506,64100.0,64097.0,0.0001001]
[1727770348325,0.162506,64100.0,64097.0,0.23687803]
[1727770348326,1.12810334,64100.0,64097.0,0.23687803]
[1727770348574,1.22169735,64100.0,64097.0,0.0001001]
[1727770349482,1.24615222,64100.0,64097.0,0.0001001]
[1727770350059,1.25215222,64100.0,64097.0,0.0001001]
[1727770350423,1.25215222,64100.0,64096.0,0.172]
[1727770350424,1.25515222,64100.0,64096.0,0.172]
[1727770353965,1.25515222,64100.0,64096.0,0.28983808]
[1727770354168,1.09914622,64100.0,64098.0,0.11783808]
[1727770354378,0.84754665,64100.0,64098.0,0.11783808]
[1727770354599,0.68908885,64100.0,64099.0,0.177825]
[1727770354829,0.68908885,64100.0,64099.0,0.333833]
[1727770355063,0.50087487,64100.0,64099.0,0.333833]
[1727770355761,0.47642,64100.0,64099.0,0.333833]
[1727770355989,0.47342,64100.0,64099.0,0.333833]
[1727770356210,0.46742,64100.0,64099.0,0.333833]
[1727770358239,0.46842,64100.0,64099.0,0.333833]
[1727770358473,0.46742,64100.0,64099.0,0.45177118]
[1727770358709,0.46842,64100.0,64099.0,0.45177118]
[1727770358927,0.46942,64100.0,64099.0,0.45177118]
[1727770363021,0.49387166,64100.0,64099.0,0.45177118]
[1727770363471,0.46942,64100.0,64099.0,0.45177118]
[1727770369713,0.49387181,64100.0,64099.0,0.45177118]
[1727770370842,0.46942,64100.0,64099.0,0.45177118]
[1727770374300,0.49387171,64100.0,64099.0,0.45177118]
[1727770374811,0.49387171,64100.0,64099.0,0.73122898]
[1727770374812,0.01388385,64100.0,64099.0,0.73122898]
[1727770374999,0.0085,64110.0,64109.0,0.329284]
[1727770375249,0.0085,64110.0,64109.0,0.44712208]
[1727770376924,0.0095,64110.0,64109.0,0.44712208]
[1727770379632,0.0055,64110.0,64109.0,0.44712208]
[1727770379846,0.0095,64110.0,64109.0,0.44712208]
[1727770381399,0.0115,64110.0,64109.0,0.155984]
[1727770381618,0.0115,64110.0,64109.0,0.27382208]
[1727770381825,0.0095,64110.0,64109.0,0.27382208]
[1727770382281,0.03594989,64110.0,64109.0,0.27382208]
[1727770383200,0.0115,64110.0,64109.0,0.27382208]
[1727770383630,0.0095,64110.0,64109.0,0.27382208]
[1727770384145,0.0115,64110.0,64109.0,0.27382208]
[1727770384370,0.0045,64102.0,64099.0,0.3129381]
[1727770384583,0.0045,64102.0,64101.0,0.27384108]
[1727770385474,0.0055,64102.0,64101.0,0.27384108]
[1727770385682,0.0065,64102.0,64101.0,0.27384108]
[1727770385902,0.0055,64102.0,64101.0,0.27384108]
[1727770386324,0.0095,64102.0,64101.0,0.27384108]
[1727770386551,0.0115,64102.0,64101.0,0.27384108]
[1727770386767,0.0105,64102.0,64101.0,0.27384108]
[1727770386990,0.0105,64102.0,64101.0,0.156003]
[1727770387212,0.0115,64102.0,64101.0,0.156003]
[1727770387899,0.004,64101.0,64100.0,0.312012]
[1727770388129,0.0085,64101.0,64100.0,0.468018]
[1727770389240,0.0105,64101.0,64100.0,0.468018]
[1727770390569,0.0105,64101.0,64100.0,0.156006]
[1727770392866,0.03495274,64101.0,64100.0,0.156006]
[1727770393067,0.0105,64101.0,64100.0,0.156006]
[1727770394867,0.0125,64101.0,64100.0,0.156006]
[1727770396005,0.03695278,64101.0,64100.0,0.156006]
[1727770396229,0.0125,64101.0,64100.0,0.156006]
[1727770398037,0.05920254,64101.0,64100.0,0.156006]
[1727770398482,0.0125,64101.0,64100.0,0.156006]
[1727770399416,0.0105,64101.0,64100.0,0.156006]
[1727770399658,0.08055382,64101.0,64100.0,0.156006]
[1727770400576,0.10390509,64101.0,64100.0,0.156006]
[1727770400813,0.10390509,64101.0,64100.0,0.27384408]
[1727770401021,0.27972614,64101.0,64100.0,0.27384408]
[1727770401501,0.28172614,64101.0,64100.0,0.27384408]
[1727770402422,0.28195271,64101.0,64100.0,0.27384408]
[1727770402634,0.1884578,64101.0,64100.0,0.27384408]
[1727770403388,0.27995271,64101.0,64100.0,0.27466808]
[1727770403645,0.28160071,64101.0,64100.0,0.27466808]
[1727770404093,0.28358773,64101.0,64100.0,0.27466808]
[1727770404340,0.6581258,64101.0,64100.0,0.27466808]
[1727770405243,0.8322258,64101.0,64100.0,0.000824]
[1727770405738,0.85667997,64101.0,64100.0,0.000824]
[1727770406244,1.01268297,64101.0,64100.0,0.000824]
[1727770407205,1.01002414,64101.0,64100.0,0.000824]
[1727770407871,1.00902414,64101.0,64100.0,0.000824]
[1727770408126,1.16648194,64101.0,64100.0,0.000824]
[1727770408355,1.16548194,64101.0,64100.0,0.000824]
[1727770410391,1.14102777,64101.0,64100.0,0.000824]
[1727770419139,1.14064467,64101.0,64100.0,0.000824]
[1727770421881,1.14065118,64101.0,64100.0,0.000824]
[1727770422108,1.16510717,64101.0,64100.0,0.000824]
[1727770423083,1.14065118,64101.0,64100.0,0.000824]
[1727770424243,1.13965118,64101.0,64100.0,0.000824]
[1727770424680,1.14165118,64101.0,64100.0,0.000824]
[1727770425117,1.13965118,64101.0,64100.0,0.000824]
[1727770425342,1.14465118,64101.0,64100.0,0.000824]
[1727770425786,1.16910723,64101.0,64100.0,0.000824]
[1727770426533,1.17110723,64101.0,64100.0,0.000824]
[1727770427493,1.14665118,64101.0,64100.0,0.000824]
[1727770427979,1.26448926,64101.0,64100.0,0.000824]
[1727770428219,1.50649091,64101.0,64100.0,0.000824]
[1727770431796,1.53094709,64101.0,64100.0,0.000824]
[1727770432477,1.41310901,64101.0,64100.0,0.000824]
[1727770437642,1.31345283,64101.0,64100.0,0.000824]
[1727770440444,1.43129091,64101.0,64100.0,0.000824]
[1727770440696,1.76340692,64101.0,64100.0,0.000824]
[1727770440927,0.283506,64100.0,64099.0,1.5e-07]
[1727770441153,1.49937706,64100.0,64099.0,1.5e-07]
[1727770441415,0.166535,64088.0,64087.0,0.0001001]
[1727770441674,0.634555,64088.0,64087.0,0.0001001]
[1727770441895,0.94748564,64088.0,64087.0,0.0001001]
[1727770442646,0.0065,64087.0,64086.0,0.000824]
[1727770442899,0.80734586,64087.0,64086.0,0.000824]
[1727770444078,0.80579072,64087.0,64086.0,0.000824]
[1727770444781,0.002,64078.0,64077.0,0.5503831]
[1727770445028,0.05269626,64078.0,64077.0,0.5503831]
[1727770445294,0.52071626,64078.0,64077.0,0.5503831]
[1727770445518,0.47402,64078.0,64077.0,0.5503831]
[1727770445743,0.47652,64078.0,64077.0,0.5503831]
[1727770445983,0.47652,64078.0,64077.0,0.0822001]
[1727770446210,0.52321626,64078.0,64077.0,0.0822001]
[1727770446440,0.47752,64078.0,64077.0,0.0822001]
[1727770446681,0.52521626,64078.0,64077.0,0.0822001]
[1727770446897,0.52321626,64078.0,64077.0,0.0822001]
[1727770447118,0.52421626,64078.0,64077.0,0.0822001]
[1727770447357,0.52521626,64078.0,64077.0,0.0822001]
[1727770447581,0.52721626,64078.0,64077.0,0.0822001]
[1727770447869,0.52721626,64078.0,64077.0,0.0001001]
[1727770448617,0.002,64077.0,64075.0,0.247366]
[1727770448857,0.004,64076.0,64075.0,0.0913]
[1727770449374,0.004,64076.0,64075.0,0.247367]
[1727770450054,0.006,64076.0,64075.0,0.247367]
[1727770450296,0.007,64076.0,64075.0,0.247367]
[1727770450542,0.005,64076.0,64075.0,0.247367]
[1727770450772,0.008,64076.0,64075.0,0.247367]
[1727770451456,0.006,64076.0,64075.0,0.247367]
[1727770453127,0.002,64076.0,64075.0,0.36832614]
[1727770453348,0.002,64076.0,64075.0,0.46740508]
[1727770453883,0.002,64076.0,64075.0,0.46822908]
[1727770457529,0.02646039,64076.0,64075.0,0.46822908]
[1727770460403,0.002,64076.0,64075.0,0.46832918]
[1727770463766,0.02646047,64076.0,64075.0,0.46832918]
[1727770468672,0.002,64076.0,64075.0,0.46832918]
[1727770472045,0.02646046,64076.0,64075.0,0.46832918]
[1727770472277,0.002,64076.0,64075.0,0.46832918]
[1727770474686,0.002,64076.0,64075.0,0.35402918]
[1727770474926,0.002,64076.0,64075.0,0.27482918]
[1727770475404,0.0065,64076.0,64075.0,0.27482918]
[1727770475863,0.05321466,64076.0,64075.0,0.27482918]
[1727770476347,0.0776762,64076.0,64075.0,0.27482918]
[1727770477983,0.0776762,64076.0,64075.0,0.27472908]
[1727770479163,0.05321466,64076.0,64075.0,0.27472908]
[1727770482367,0.07767651,64076.0,64075.0,0.27472908]
[1727770482602,0.07769835,64076.0,64075.0,0.27472908]
[1727770483089,0.17299835,64076.0,64075.0,0.156891]
[1727770483329,0.20236661,64076.0,64075.0,0.156891]
[1727770483542,0.13226185,64076.0,64075.0,0.156891]
[1727770483775,0.39572052,64076.0,64075.0,0.156891]
[1727770486323,0.39572052,64076.0,64075.0,0.000824]
[1727770486597,0.30224751,64076.0,64075.0,0.000824]
[1727770486849,0.77026751,64076.0,64075.0,0.000824]
[1727770487299,0.76989475,64076.0,64075.0,0.000824]
[1727770489121,0.7454329,64076.0,64075.0,0.000824]
[1727770489818,0.86224701,64076.0,64072.0,0.27038608]
[1727770490036,0.004,64073.0,64072.0,0.27038608]
[1727770490270,0.47402,64073.0,64072.0,0.27038608]
[1727770490562,0.54410345,64073.0,64072.0,0.27038608]
[1727770492178,0.54410391,64073.0,64072.0,0.27638608]
[1727770492425,0.56856819,64073.0,64072.0,0.27638608]
[1727770492664,0.56956819,64073.0,64072.0,0.27638608]
[1727770493092,0.57056819,64073.0,64072.0,0.27638608]
[1727770493343,0.56456819,64073.0,64072.0,0.27638608]
[1727770493573,0.57306819,64073.0,64072.0,0.27638608]
[1727770493803,0.49848428,64073.0,64072.0,0.27638608]
[1727770494017,0.50298428,64073.0,64072.0,0.27638608]
[1727770499076,0.47852,64073.0,64072.0,0.27638608]
[1727770501412,0.47852,64073.0,64072.0,0.27721008]
[1727770502345,0.50298372,64073.0,64072.0,0.27721008]
[1727770503077,0.49898372,64073.0,64072.0,0.27721008]
[1727770503305,0.50298372,64073.0,64072.0,0.27721008]
[1727770503975,0.47852,64073.0,64072.0,0.27721008]
[1727770504185,0.47852,64073.0,64072.0,0.27731018]
[1727770507174,0.49448351,64073.0,64072.0,0.36881018]
[1727770507417,0.49848351,64073.0,64072.0,0.44481018]
[1727770507653,0.47402,64073.0,64072.0,0.46781018]
[1727770509745,0.47402,64073.0,64072.0,0.46181018]
[1727770513555,0.49848303,64073.0,64072.0,0.46181018]
[1727770513838,0.50013103,64073.0,64072.0,0.46181018]
[1727770514074,0.49613103,64073.0,64072.0,0.46181018]
[1727770514310,0.50013103,64073.0,64072.0,0.46181018]
[1727770515476,0.475668,64073.0,64072.0,0.46181018]
[1727770521077,0.471668,64073.0,64072.0,0.46181018]
[1727770521301,0.475668,64073.0,64072.0,0.46181018]
[1727770522650,0.50013114,64073.0,64072.0,0.46181018]
[1727770527700,0.475668,64073.0,64072.0,0.46181018]
[1727770529569,0.471668,64073.0,64072.0,0.46181018]
[1727770529796,0.475668,64073.0,64072.0,0.46181018]
[1727770530518,0.475668,64073.0,64072.0,0.29431018]
[1727770530758,0.475668,64073.0,64072.0,0.1799981]
[1727770530979,0.475668,64073.0,64072.0,0.29783618]
[1727770531211,0.50013137,64073.0,64072.0,0.30095732]
[1727770532196,0.475668,64073.0,64072.0,0.30095732]
[1727770533973,0.475668,64073.0,64072.0,0.29783618]
[1727770534770,0.475668,64073.0,64072.0,0.30095733]
[1727770535156,0.50013129,64073.0,64072.0,0.30095733]
[1727770535361,0.49613129,64073.0,64072.0,0.30095733]
[1727770535531,0.50013129,64073.0,64072.0,0.30095733]
[1727770537436,0.471668,64073.0,64072.0,0.30095733]
[1727770537702,0.475668,64073.0,64072.0,0.30095733]
[1727770538629,0.475668,64073.0,64072.0,0.29783618]
[1727770539249,0.475668,64073.0,64072.0,0.30095733]
[1727770541197,0.50013137,64073.0,64072.0,0.30095733]
[1727770542050,0.475668,64073.0,64072.0,0.30095733]
[1727770542276,0.471668,64073.0,64072.0,0.30095733]
[1727770542502,0.475668,64073.0,64072.0,0.30095733]
[1727770543359,0.475668,64073.0,64072.0,0.29783618]
[1727770545379,0.475668,64073.0,64072.0,0.30095734]
[1727770545858,0.50013147,64073.0,64072.0,0.30095734]
[1727770546355,0.49613147,64073.0,64072.0,0.30095734]
[1727770546576,0.50013147,64073.0,64072.0,0.30095734]
[1727770546817,0.49613147,64073.0,64072.0,0.30095734]
[1727770547056,0.49613147,64073.0,64072.0,0.47377388]
[1727770547315,0.49613147,64073.0,64072.0,0.56655272]
[1727770547557,0.471668,64073.0,64072.0,0.64455272]
[1727770549831,0.471668,64073.0,64072.0,0.64457063]
[1727770553095,0.471668,64073.0,64072.0,0.62819398]
[1727770553341,0.471668,64073.0,64072.0,0.64457724]
[1727770555872,0.471668,64073.0,64072.0,0.64452972]
[1727770556345,0.471668,64073.0,64072.0,0.52669164]
[1727770556575,0.471668,64073.0,64072.0,0.62819398]
[1727770557036,0.471668,64073.0,64072.0,0.64452925]
[1727770560045,0.471668,64073.0,64072.0,0.62819398]
[1727770560208,0.471668,64073.0,64072.0,0.64449752]
[1727770560658,0.471668,64073.0,64072.0,0.47059752]
[1727770563351,0.471668,64073.0,64072.0,0.45429398]
[1727770563593,0.471668,64073.0,64072.0,0.47052109]
[1727770565569,0.471668,64073.0,64072.0,0.45429398]
[1727770565796,0.471668,64073.0,64072.0,0.47051686]
[1727770567125,0.471668,64073.0,64072.0,0.35267878]
[1727770567362,0.471668,64073.0,64072.0,0.47051686]
[1727770567884,0.471668,64073.0,64072.0,0.45429398]
[1727770568561,0.471668,64073.0,64072.0,0.3364559]
[1727770568798,0.471668,64073.0,64072.0,0.45429398]
[1727770570155,0.471668,64073.0,64072.0,0.29783618]
[1727770570394,0.564868,64073.0,64072.0,0.29783618]
[1727770572814,0.58933077,64073.0,64072.0,0.27483618]
[1727770573239,0.564868,64073.0,64072.0,0.27483618]